{"text_format":"3","workbook":"xlsx","n_sheets":5,"sheets":["简介","里程碑","任务","甘特图","动态图表数据（隐藏）"],"not_rendered":{"charts":1,"defined_names":4},"read":"whole","date_system":"1900"}

{"sheet":"简介","index":0,"n_rows":11,"n_cols":1,"rows_kept":11}
["关于此工作簿"]
["在“里程碑和任务”工作表中输入里程碑和任务信息。若要沿时间线绘制里程碑，请在“编号”列中输入 0，然后将标签位置更新为“下方”以避免标签重叠。\n\n里程碑表中的位置列，可在任务图表中的同一行或堆叠行上绘制里程碑。要在同一行上绘制，请在此列中为每个里程碑输入相同的数字。若要在不同的行上绘制，请输入不同的数字。示例数据沿行位置 2 绘制所有里程碑。\n"]
["屏幕阅读器指南"]
["\n此工作簿中有 5 个工作表:\n简介\n里程碑\n任务\n甘特图\n动态图表数据(隐藏)\n\n每个工作表的指示文本位于每个工作表中自单元格 A1 开始的 A 列中。这些指示都使用隐藏文本编写。每个步骤均提供相应指示，引导阅读者查看行中的相应信息。除非另有明确指示，否则会在单元格 A2、A3 等后续单元格中持续指示相应步骤。例如，指示文本可能显示为“转到单元格 A6”以执行下一步操作。\n\n将不会打印隐藏文本。\n若要从任何工作表删除这些指示，只需删除 A 列即可。\n"]
["动态图表数据（隐藏）"]
["\n请勿删除或修改隐藏工作表中的内容。此操作可能会损害甘特图表的完整性。\n\n数据可能显示为空白，日期显示可能不正确，请勿填写、编辑、删除或以其他方式修改此数据，否则可能会覆盖公式和破坏图表绘制功能。\n\n该“动态里程碑”表允许绘制 15 个里程碑。若要绘制超过 15 个里程碑，只需展开表格容纳数字即可。请记住，仅在“图表数据”工作表中添加实际里程碑数据。\n"]
["提示"]
["\n默认情况下，从单元格 C5 开始，使用“图表数据”工作表中的“位置”列在“甘特图”的第 1 行绘制里程碑。若要在不同行上绘制里程碑，只需更改数字即可。 \n"]
["默认设置是在“甘特图”中突出显示今天的日期。若要不再突出显示今天的日期，只需在“图表数据”工作表的单元格 D2 中选择“否”即可。\n"]
["以 5 个日期为间隔绘制“甘特图”日期时间线。要更改此设置，请在“甘特图”工作表中选择时间线，然后选择“设置坐标轴格式”。例如，将单位“大”从 5 更改为 1 或 10。 \n"]
["这是此工作表中的最后一条指示。"]

{"sheet":"里程碑","index":1,"n_rows":26,"n_cols":5,"rows_kept":26}
["在此工作表中创建日期​​跟踪​​甘特图。\n此工作表的标题位于单元格 B1 中。\n有关如何使用此工作表的信息（包括屏幕阅读器指示）包含在“关于”工作表中。\n继续向下浏览 A 列，获取进一步指示。","日期​​跟踪​​甘特图"]
["如果要在“甘特图”工作表中突出显示今天的日期，请在单元格 D2 中选择选项“是”。\n如果不想在“甘特图”工作表中突出显示今天的日期，请在单元格 D2 中选择选项“否”。\n在单元格 D2中，选择 Alt+向下键以显示选项。","跟踪今天的日期?",null,"是"]
["里程碑表的里程碑标题位于单元格 B3 中。\n任务表的任务标题位于单元格 G3 中。","里程碑"]
["有关里程碑表中各列的信息位于从单元格 B4 到 E4 的此行中。\n有关任务表中各列的信息位于从单元格 G4 到 J4 的此行中。","此列应按顺序排序。","位置列，用于在任务图表中绘制里程碑。","在此列中输入里程碑的日期。","在此列中输入里程碑说明。这些说明将显示在图表中。"]
["里程碑表标题位于单元格 B5 到 E5 中。任务表标题位于单元格 G5 到 J5 中。\n里程碑示例数据位于单元格 B6 到 E11 中。\n任务示例数据位于单元格 G6 到 J17 中。\n下一条指示位于单元格 A21 中。","编号","位置​​","日期","里程碑"]
[null,1,1,{"$f":"开始日期+10","v":"2024-04-21"},"里程碑 1"]
[null,2,1,{"$f":"TODAY()+25","v":"2024-05-07"},"里程碑 2"]
[null,3,1,{"$f":"TODAY()+35","v":"2024-05-17"},"里程碑 3"]
[null,4,1,{"$f":"TODAY()+45","v":"2024-05-27"},"里程碑 4"]
[null,5,1,{"$f":"TODAY()+60","v":"2024-06-11"},"里程碑 5"]
[null,6,1,{"$f":"TODAY()+70","v":"2024-06-21"},"里程碑 6"]
{"$rows_empty":9}
["若要添加更多里程碑，请在此之上添加新行。\n请注意，图表的默认里程碑数为 15。添加新的里程碑需要更改隐藏的工作表。有关详细信息，请参阅“关于”工作表的单元格 A9。\n下一条指示位于单元格 A26 中。","若要添加更多里程碑，请在此之上添加新行。"]
[]
[]
[]
[]
["备注位于单元格 G26 中。\n这是此工作表中的最后一条指示。"]

{"sheet":"任务","index":2,"n_rows":26,"n_cols":6,"rows_kept":26}
["在此工作表中创建日期​​跟踪​​甘特图。\n此工作表的标题位于单元格 B1 中。\n有关如何使用此工作表的信息（包括屏幕阅读器指示）包含在“关于”工作表中。\n继续向下浏览 A 列，获取进一步指示。","日期​​跟踪​​甘特图"]
[]
["里程碑表的里程碑标题位于单元格 B3 中。\n任务表的任务标题位于单元格 G3 中。","任务"]
[null,"此列应按顺序排序。","在下面输入每个任务的开始日期。为获得最佳结果，请按升序对此列进行排序。","在下面的此列中输入每个任务或活动的结束日期。","在此列中输入任务和/或活动。","自动计算的列，用于绘制每个任务的持续时间。请勿删除或修改。"]
[null,"编号","开始日期","结束日期","任务","持续时间（天）"]
[null,1,{"$f":"TODAY()-1","v":"2024-04-11"},{"$f":"任务[[#This Row],[开始日期]]+1","v":"2024-04-12"},"活动 1",{"$f":"IFERROR(IF(LEN(任务[[#This Row],[开始日期]])=0,\"\",(INT(任务[[#This Row],[结束日期]])-INT(任务[[#This Row],[开始日期]]))-(INT(任务[[#This Row],[开始日期]])-INT(任务[[#This Row],[开始日期]]))+1),\"\")","v":2}]
[null,2,{"$f":"TODAY()","v":"2024-04-12"},{"$f":"任务[[#This Row],[开始日期]]+1","v":"2024-04-13"},"活动 2",{"$f":"IFERROR(IF(LEN(任务[[#This Row],[开始日期]])=0,\"\",(INT(任务[[#This Row],[结束日期]])-INT(任务[[#This Row],[开始日期]]))-(INT(任务[[#This Row],[开始日期]])-INT(任务[[#This Row],[开始日期]]))+1),\"\")","v":2}]
[null,3,{"$f":"TODAY()","v":"2024-04-12"},{"$f":"任务[[#This Row],[开始日期]]+5","v":"2024-04-17"},"活动 3",{"$f":"IFERROR(IF(LEN(任务[[#This Row],[开始日期]])=0,\"\",(INT(任务[[#This Row],[结束日期]])-INT(任务[[#This Row],[开始日期]]))-(INT(任务[[#This Row],[开始日期]])-INT(任务[[#This Row],[开始日期]]))+1),\"\")","v":6}]
[null,4,{"$f":"TODAY()+1","v":"2024-04-13"},{"$f":"任务[[#This Row],[开始日期]]+7","v":"2024-04-20"},"活动 4",{"$f":"IFERROR(IF(LEN(任务[[#This Row],[开始日期]])=0,\"\",(INT(任务[[#This Row],[结束日期]])-INT(任务[[#This Row],[开始日期]]))-(INT(任务[[#This Row],[开始日期]])-INT(任务[[#This Row],[开始日期]]))+1),\"\")","v":8}]
[null,5,{"$f":"TODAY()+8","v":"2024-04-20"},{"$f":"任务[[#This Row],[开始日期]]+10","v":"2024-04-30"},"活动 5",{"$f":"IFERROR(IF(LEN(任务[[#This Row],[开始日期]])=0,\"\",(INT(任务[[#This Row],[结束日期]])-INT(任务[[#This Row],[开始日期]]))-(INT(任务[[#This Row],[开始日期]])-INT(任务[[#This Row],[开始日期]]))+1),\"\")","v":11}]
[null,6,{"$f":"TODAY()+12","v":"2024-04-24"},{"$f":"任务[[#This Row],[开始日期]]+30","v":"2024-05-24"},"活动 6",{"$f":"IFERROR(IF(LEN(任务[[#This Row],[开始日期]])=0,\"\",(INT(任务[[#This Row],[结束日期]])-INT(任务[[#This Row],[开始日期]]))-(INT(任务[[#This Row],[开始日期]])-INT(任务[[#This Row],[开始日期]]))+1),\"\")","v":31}]
[null,7,{"$f":"TODAY()+15","v":"2024-04-27"},{"$f":"任务[[#This Row],[开始日期]]+15","v":"2024-05-12"},"活动 7",{"$f":"IFERROR(IF(LEN(任务[[#This Row],[开始日期]])=0,\"\",(INT(任务[[#This Row],[结束日期]])-INT(任务[[#This Row],[开始日期]]))-(INT(任务[[#This Row],[开始日期]])-INT(任务[[#This Row],[开始日期]]))+1),\"\")","v":16}]
[null,8,{"$f":"TODAY()+25","v":"2024-05-07"},{"$f":"任务[[#This Row],[开始日期]]+5","v":"2024-05-12"},"活动 8",{"$f":"IFERROR(IF(LEN(任务[[#This Row],[开始日期]])=0,\"\",(INT(任务[[#This Row],[结束日期]])-INT(任务[[#This Row],[开始日期]]))-(INT(任务[[#This Row],[开始日期]])-INT(任务[[#This Row],[开始日期]]))+1),\"\")","v":6}]
[null,9,{"$f":"TODAY()+34","v":"2024-05-16"},{"$f":"任务[[#This Row],[开始日期]]+2","v":"2024-05-18"},"活动 9",{"$f":"IFERROR(IF(LEN(任务[[#This Row],[开始日期]])=0,\"\",(INT(任务[[#This Row],[结束日期]])-INT(任务[[#This Row],[开始日期]]))-(INT(任务[[#This Row],[开始日期]])-INT(任务[[#This Row],[开始日期]]))+1),\"\")","v":3}]
[null,10,{"$f":"TODAY()+40","v":"2024-05-22"},{"$f":"任务[[#This Row],[开始日期]]+30","v":"2024-06-21"},"活动 10",{"$f":"IFERROR(IF(LEN(任务[[#This Row],[开始日期]])=0,\"\",(INT(任务[[#This Row],[结束日期]])-INT(任务[[#This Row],[开始日期]]))-(INT(任务[[#This Row],[开始日期]])-INT(任务[[#This Row],[开始日期]]))+1),\"\")","v":31}]
[null,11,{"$f":"TODAY()+42","v":"2024-05-24"},{"$f":"任务[[#This Row],[开始日期]]+23","v":"2024-06-16"},"活动 11",{"$f":"IFERROR(IF(LEN(任务[[#This Row],[开始日期]])=0,\"\",(INT(任务[[#This Row],[结束日期]])-INT(任务[[#This Row],[开始日期]]))-(INT(任务[[#This Row],[开始日期]])-INT(任务[[#This Row],[开始日期]]))+1),\"\")","v":24}]
[null,12,{"$f":"TODAY()+50","v":"2024-06-01"},{"$f":"任务[[#This Row],[开始日期]]+5","v":"2024-06-06"},"活动 12",{"$f":"IFERROR(IF(LEN(任务[[#This Row],[开始日期]])=0,\"\",(INT(任务[[#This Row],[结束日期]])-INT(任务[[#This Row],[开始日期]]))-(INT(任务[[#This Row],[开始日期]])-INT(任务[[#This Row],[开始日期]]))+1),\"\")","v":6}]
[{"$nulls":5},{"$f":"IFERROR(IF(LEN(任务[[#This Row],[开始日期]])=0,\"\",(INT(任务[[#This Row],[结束日期]])-INT(任务[[#This Row],[开始日期]]))-(INT(任务[[#This Row],[开始日期]])-INT(任务[[#This Row],[开始日期]]))+1),\"\")","v":""}]
[{"$nulls":5},{"$f":"IFERROR(IF(LEN(任务[[#This Row],[开始日期]])=0,\"\",(INT(任务[[#This Row],[结束日期]])-INT(任务[[#This Row],[开始日期]]))-(INT(任务[[#This Row],[开始日期]])-INT(任务[[#This Row],[开始日期]]))+1),\"\")","v":""}]
[{"$nulls":5},{"$f":"IFERROR(IF(LEN(任务[[#This Row],[开始日期]])=0,\"\",(INT(任务[[#This Row],[结束日期]])-INT(任务[[#This Row],[开始日期]]))-(INT(任务[[#This Row],[开始日期]])-INT(任务[[#This Row],[开始日期]]))+1),\"\")","v":""}]
[{"$nulls":5},{"$f":"IFERROR(IF(LEN(任务[[#This Row],[开始日期]])=0,\"\",(INT(任务[[#This Row],[结束日期]])-INT(任务[[#This Row],[开始日期]]))-(INT(任务[[#This Row],[开始日期]])-INT(任务[[#This Row],[开始日期]]))+1),\"\")","v":""}]
[{"$nulls":5},{"$f":"IFERROR(IF(LEN(任务[[#This Row],[开始日期]])=0,\"\",(INT(任务[[#This Row],[结束日期]])-INT(任务[[#This Row],[开始日期]]))-(INT(任务[[#This Row],[开始日期]])-INT(任务[[#This Row],[开始日期]]))+1),\"\")","v":""}]
[{"$nulls":5},{"$f":"IFERROR(IF(LEN(任务[[#This Row],[开始日期]])=0,\"\",(INT(任务[[#This Row],[结束日期]])-INT(任务[[#This Row],[开始日期]]))-(INT(任务[[#This Row],[开始日期]])-INT(任务[[#This Row],[开始日期]]))+1),\"\")","v":""}]
[{"$nulls":5},{"$f":"IFERROR(IF(LEN(任务[[#This Row],[开始日期]])=0,\"\",(INT(任务[[#This Row],[结束日期]])-INT(任务[[#This Row],[开始日期]]))-(INT(任务[[#This Row],[开始日期]])-INT(任务[[#This Row],[开始日期]]))+1),\"\")","v":""}]
[{"$nulls":5},{"$f":"IFERROR(IF(LEN(任务[[#This Row],[开始日期]])=0,\"\",(INT(任务[[#This Row],[结束日期]])-INT(任务[[#This Row],[开始日期]]))-(INT(任务[[#This Row],[开始日期]])-INT(任务[[#This Row],[开始日期]]))+1),\"\")","v":""}]
[null,"若要添加更多任务，请在此之上添加新行。"]

{"sheet":"甘特图","index":3,"n_rows":1,"n_cols":1,"rows_kept":1}
["此工作表中的甘特图显示“今天”，以及某个日期范围内的里程碑和任务。\n滚动条位于第 1 行的单元格 B1 到 R1 中，增大日期范围可显示未来的里程碑。\n该图表绘制在单元格 B2 到 R3 中。\n这是此工作表中的最后一条指示。"]

{"sheet":"动态图表数据（隐藏）","index":4,"n_rows":32,"n_cols":10,"rows_kept":32,"hidden":true}
["此工作表的标题位于单元格 B1 中。","动态图表数据，请勿编辑或删除此工作表！"]
["表格标题位于单元格 B2 和 C2 中。",{"$f":"IF(TODAY()>=MIN(DynamicTaskData[开始日期]),\"今天\",\"\")","v":"今天"},"突出显示"]
["表格标题位于单元格 B3 和 C3 中。这些坐标可让“今天”在图表中突出显示。\n第一列标记日期，第二列指示绘制突出显示今天的直线。\n第一列日期可能会更改，因此图表日期范围会随着日期前进而保持可读，但是，y 坐标为 0 表示不绘制任何直线。\n请勿修改或删除此内容，否则可能破坏图表。若要不再突出显示今天的日期，只需在“图表数据”工作表的单元格 D2 中选择“否”即可。\n下一条指示位于单元格 A7 中。","突出显示今天的 x 坐标","y 坐标"]
[null,{"$f":"IFERROR(IF(TODAY()<MIN(DynamicTaskData[开始日期]),MIN($B$11,MIN(DynamicTaskData[开始日期])),TODAY()),TODAY())","v":"2024-04-12"},{"$f":"IFERROR(IF(跟踪今天=\"是\",IF(TODAY()<MIN(DynamicTaskData[开始日期]),0,9),0),0)","v":9}]
[null,{"$f":"IFERROR(IF(TODAY()<MIN(DynamicTaskData[开始日期]),MIN($B$11,MIN(DynamicTaskData[开始日期])),TODAY()),TODAY())","v":"2024-04-12"},{"$f":"IFERROR(IF(跟踪今天=\"是\",IF(TODAY()<MIN(DynamicTaskData[开始日期]),0,9),0),0)","v":9}]
[]
["表格标题位于单元格 B7 中。\n单元格 B8 中的滚动增量表示任何时候在“甘特图”中绘制并直观显示的数据。\n滚动“甘特图”工作表中图表顶部的滚动条（第 1 行）时，此数字随之增加。\n绘图最适合单一增量。\n下一条指示位于单元格 A10 中。","滚动增量"]
[null,0]
[]
["表格标题位于单元格 B10 和 D10 中。\n绘图范围有助于选择适当的任务范围和里程碑范围。请勿修改这些字段。\n减时数字，使时效任务始终都可读取范围内的图表，且仅绘制范围内的任务和里程碑。请勿修改此数字。\n下一条指示位于单元格 A14 中。\n\n","制图范围",null,"减时"]
[null,{"$f":"IFERROR(IF(ScrollingIncrement[滚动增量]=0,开始日期,IF(开始日期+ScrollingIncrement[滚动增量]*15<结束日期,开始日期+ScrollingIncrement[滚动增量]*15,结束日期-1)),\"\")","v":"2024-04-11"},null,45]
[null,{"$f":"IFERROR(IF($B$11+15<结束日期,$B$11+15,结束日期),\"\")","v":"2024-04-26"}]
[]
["“动态里程碑数据”的表格标题位于单元格 B14 到 E14 中。备注位于单元格 F14 中。\n此表在“甘特图”工作表中创建甘特图，一次绘制 7 个里程碑。\n此图表中的数据是根据上表中的内容自动生成的。\n请勿编辑或删除此表或其内容。\n下一条指示位于单元格 A17 中。","任务","开始日期","任务持续时间（天）","位置​​","<-- 此表格用于创建甘特图，一次绘制 7 个里程碑"]
[null,{"$f":"IFERROR(IF(LEN(OFFSET(任务!$C6,ScrollingIncrement[滚动增量],0,1,1))=0,\"\",IF(OR(OFFSET(任务!$D6,ScrollingIncrement[滚动增量],0,1,1)<=$B$12,OFFSET(任务!$C6,ScrollingIncrement[滚动增量],0,1,1)>=($B$11-$D$11)),INDEX(任务[],OFFSET(任务!$B6,ScrollingIncrement[滚动增量],0,1,1),4),\"\")),\"\")","v":"活动 1"},{"$f":"IFERROR(IF(LEN(DynamicTaskData[[#This Row],[任务]])=0,$B$11,INDEX(任务[],OFFSET(任务!$B6,ScrollingIncrement[滚动增量],0,1,1),2)),\"\")","v":"2024-04-11"},{"$f":"IFERROR(IF(LEN(DynamicTaskData[[#This Row],[任务]])=0,0,IF(AND(任务!$C6<=$B$12,任务!$D6>=$B$12),ABS(OFFSET(任务!$C6,ScrollingIncrement[滚动增量],0,1,1)-$B$12)+1,OFFSET(任务!$F6,ScrollingIncrement[滚动增量],0,1,1))),\"\")","v":2},{"$f":"IFERROR(IF(LEN(DynamicTaskData[[#This Row],[任务]])=0,\"\",8),\"\")","v":8}]
[null,{"$f":"IFERROR(IF(LEN(OFFSET(任务!$C7,ScrollingIncrement[滚动增量],0,1,1))=0,\"\",IF(OR(OFFSET(任务!$D7,ScrollingIncrement[滚动增量],0,1,1)<=$B$12,OFFSET(任务!$C7,ScrollingIncrement[滚动增量],0,1,1)>=($B$11-$D$11)),INDEX(任务[],OFFSET(任务!$B7,ScrollingIncrement[滚动增量],0,1,1),4),\"\")),\"\")","v":"活动 2"},{"$f":"IFERROR(IF(LEN(DynamicTaskData[[#This Row],[任务]])=0,$B$11,INDEX(任务[],OFFSET(任务!$B7,ScrollingIncrement[滚动增量],0,1,1),2)),\"\")","v":"2024-04-12"},{"$f":"IFERROR(IF(LEN(DynamicTaskData[[#This Row],[任务]])=0,0,IF(AND(任务!$C7<=$B$12,任务!$D7>=$B$12),ABS(OFFSET(任务!$C7,ScrollingIncrement[滚动增量],0,1,1)-$B$12)+1,OFFSET(任务!$F7,ScrollingIncrement[滚动增量],0,1,1))),\"\")","v":2},{"$f":"IFERROR(IF(LEN(DynamicTaskData[[#This Row],[任务]])=0,\"\",7),\"\")","v":7},null,"里程碑制图"]
["单元格 G15 到 I15 包含动态里程碑数据的表格标题。\n此表中的数据可能显示为空白，日期显示可能不正确，请勿填写、编辑、删除或以其他方式修改此数据，否则可能会覆盖公式和破坏图表绘制功能。\n该表允许绘制 15 个里程碑。若要绘制超过 15 个里程碑，只需展开表格容纳数字即可。请记住，仅在“图表数据”工作表中添加里程碑。请勿在此表中添加任何内容。\n备注位于单元格 J15 中。\n下一条指示位于单元格 A32 中。",{"$f":"IFERROR(IF(LEN(OFFSET(任务!$C8,ScrollingIncrement[滚动增量],0,1,1))=0,\"\",IF(OR(OFFSET(任务!$D8,ScrollingIncrement[滚动增量],0,1,1)<=$B$12,OFFSET(任务!$C8,ScrollingIncrement[滚动增量],0,1,1)>=($B$11-$D$11)),INDEX(任务[],OFFSET(任务!$B8,ScrollingIncrement[滚动增量],0,1,1),4),\"\")),\"\")","v":"活动 3"},{"$f":"IFERROR(IF(LEN(DynamicTaskData[[#This Row],[任务]])=0,$B$11,INDEX(任务[],OFFSET(任务!$B8,ScrollingIncrement[滚动增量],0,1,1),2)),\"\")","v":"2024-04-12"},{"$f":"IFERROR(IF(LEN(DynamicTaskData[[#This Row],[任务]])=0,0,IF(AND(任务!$C8<=$B$12,任务!$D8>=$B$12),ABS(OFFSET(任务!$C8,ScrollingIncrement[滚动增量],0,1,1)-$B$12)+1,OFFSET(任务!$F8,ScrollingIncrement[滚动增量],0,1,1))),\"\")","v":6},{"$f":"IFERROR(IF(LEN(DynamicTaskData[[#This Row],[任务]])=0,\"\",6),\"\")","v":6},null,"里程碑","日期","基线","<-- 此表用于在甘特图中创建里程碑标记，仅绘制所示日期范围内的里程碑；最多绘制 15 个里程碑"]
[null,{"$f":"IFERROR(IF(LEN(OFFSET(任务!$C9,ScrollingIncrement[滚动增量],0,1,1))=0,\"\",IF(OR(OFFSET(任务!$D9,ScrollingIncrement[滚动增量],0,1,1)<=$B$12,OFFSET(任务!$C9,ScrollingIncrement[滚动增量],0,1,1)>=($B$11-$D$11)),INDEX(任务[],OFFSET(任务!$B9,ScrollingIncrement[滚动增量],0,1,1),4),\"\")),\"\")","v":"活动 4"},{"$f":"IFERROR(IF(LEN(DynamicTaskData[[#This Row],[任务]])=0,$B$11,INDEX(任务[],OFFSET(任务!$B9,ScrollingIncrement[滚动增量],0,1,1),2)),\"\")","v":"2024-04-13"},{"$f":"IFERROR(IF(LEN(DynamicTaskData[[#This Row],[任务]])=0,0,IF(AND(任务!$C9<=$B$12,任务!$D9>=$B$12),ABS(OFFSET(任务!$C9,ScrollingIncrement[滚动增量],0,1,1)-$B$12)+1,OFFSET(任务!$F9,ScrollingIncrement[滚动增量],0,1,1))),\"\")","v":8},{"$f":"IFERROR(IF(LEN(DynamicTaskData[[#This Row],[任务]])=0,\"\",5),\"\")","v":5},null,{"$f":"IFERROR(IF(LEN(里程碑!D6)=0,\"\",IF(AND(里程碑!D6<=$B$12,里程碑!D6>=$B$11-$D$11),里程碑!E6,\"\")),\"\")","v":"里程碑 1"},{"$f":"IFERROR(IF(LEN(动态里程碑日期[[#This Row],[里程碑]])=0,$B$12,里程碑!$D6),2)","v":"2024-04-21"},{"$f":"IFERROR(IF(LEN(动态里程碑日期[[#This Row],[里程碑]])=0,\"\",里程碑!$C6),\"\")","v":1}]
[null,{"$f":"IFERROR(IF(LEN(OFFSET(任务!$C10,ScrollingIncrement[滚动增量],0,1,1))=0,\"\",IF(OR(OFFSET(任务!$D10,ScrollingIncrement[滚动增量],0,1,1)<=$B$12,OFFSET(任务!$C10,ScrollingIncrement[滚动增量],0,1,1)>=($B$11-$D$11)),INDEX(任务[],OFFSET(任务!$B10,ScrollingIncrement[滚动增量],0,1,1),4),\"\")),\"\")","v":"活动 5"},{"$f":"IFERROR(IF(LEN(DynamicTaskData[[#This Row],[任务]])=0,$B$11,INDEX(任务[],OFFSET(任务!$B10,ScrollingIncrement[滚动增量],0,1,1),2)),\"\")","v":"2024-04-20"},{"$f":"IFERROR(IF(LEN(DynamicTaskData[[#This Row],[任务]])=0,0,IF(AND(任务!$C10<=$B$12,任务!$D10>=$B$12),ABS(OFFSET(任务!$C10,ScrollingIncrement[滚动增量],0,1,1)-$B$12)+1,OFFSET(任务!$F10,ScrollingIncrement[滚动增量],0,1,1))),\"\")","v":7},{"$f":"IFERROR(IF(LEN(DynamicTaskData[[#This Row],[任务]])=0,\"\",4),\"\")","v":4},null,{"$f":"IFERROR(IF(LEN(里程碑!D7)=0,\"\",IF(AND(里程碑!D7<=$B$12,里程碑!D7>=$B$11-$D$11),里程碑!E7,\"\")),\"\")","v":""},{"$f":"IFERROR(IF(LEN(动态里程碑日期[[#This Row],[里程碑]])=0,$B$12,里程碑!$D7),2)","v":"2024-04-26"},{"$f":"IFERROR(IF(LEN(动态里程碑日期[[#This Row],[里程碑]])=0,\"\",里程碑!$C7),\"\")","v":""}]
[null,{"$f":"IFERROR(IF(LEN(OFFSET(任务!$C11,ScrollingIncrement[滚动增量],0,1,1))=0,\"\",IF(OR(OFFSET(任务!$D11,ScrollingIncrement[滚动增量],0,1,1)<=$B$12,OFFSET(任务!$C11,ScrollingIncrement[滚动增量],0,1,1)>=($B$11-$D$11)),INDEX(任务[],OFFSET(任务!$B11,ScrollingIncrement[滚动增量],0,1,1),4),\"\")),\"\")","v":"活动 6"},{"$f":"IFERROR(IF(LEN(DynamicTaskData[[#This Row],[任务]])=0,$B$11,INDEX(任务[],OFFSET(任务!$B11,ScrollingIncrement[滚动增量],0,1,1),2)),\"\")","v":"2024-04-24"},{"$f":"IFERROR(IF(LEN(DynamicTaskData[[#This Row],[任务]])=0,0,IF(AND(任务!$C11<=$B$12,任务!$D11>=$B$12),ABS(OFFSET(任务!$C11,ScrollingIncrement[滚动增量],0,1,1)-$B$12)+1,OFFSET(任务!$F11,ScrollingIncrement[滚动增量],0,1,1))),\"\")","v":3},{"$f":"IFERROR(IF(LEN(DynamicTaskData[[#This Row],[任务]])=0,\"\",3),\"\")","v":3},null,{"$f":"IFERROR(IF(LEN(里程碑!D8)=0,\"\",IF(AND(里程碑!D8<=$B$12,里程碑!D8>=$B$11-$D$11),里程碑!E8,\"\")),\"\")","v":""},{"$f":"IFERROR(IF(LEN(动态里程碑日期[[#This Row],[里程碑]])=0,$B$12,里程碑!$D8),2)","v":"2024-04-26"},{"$f":"IFERROR(IF(LEN(动态里程碑日期[[#This Row],[里程碑]])=0,\"\",里程碑!$C8),\"\")","v":""}]
[null,{"$f":"IFERROR(IF(LEN(OFFSET(任务!$C12,ScrollingIncrement[滚动增量],0,1,1))=0,\"\",IF(OR(OFFSET(任务!$D12,ScrollingIncrement[滚动增量],0,1,1)<=$B$12,OFFSET(任务!$C12,ScrollingIncrement[滚动增量],0,1,1)>=($B$11-$D$11)),INDEX(任务[],OFFSET(任务!$B12,ScrollingIncrement[滚动增量],0,1,1),4),\"\")),\"\")","v":"活动 7"},{"$f":"IFERROR(IF(LEN(DynamicTaskData[[#This Row],[任务]])=0,$B$11,INDEX(任务[],OFFSET(任务!$B12,ScrollingIncrement[滚动增量],0,1,1),2)),\"\")","v":"2024-04-27"},{"$f":"IFERROR(IF(LEN(DynamicTaskData[[#This Row],[任务]])=0,0,IF(AND(任务!$C12<=$B$12,任务!$D12>=$B$12),ABS(OFFSET(任务!$C12,ScrollingIncrement[滚动增量],0,1,1)-$B$12)+1,OFFSET(任务!$F12,ScrollingIncrement[滚动增量],0,1,1))),\"\")","v":16},{"$f":"IFERROR(IF(LEN(DynamicTaskData[[#This Row],[任务]])=0,\"\",2),\"\")","v":2},null,{"$f":"IFERROR(IF(LEN(里程碑!D9)=0,\"\",IF(AND(里程碑!D9<=$B$12,里程碑!D9>=$B$11-$D$11),里程碑!E9,\"\")),\"\")","v":""},{"$f":"IFERROR(IF(LEN(动态里程碑日期[[#This Row],[里程碑]])=0,$B$12,里程碑!$D9),2)","v":"2024-04-26"},{"$f":"IFERROR(IF(LEN(动态里程碑日期[[#This Row],[里程碑]])=0,\"\",里程碑!$C9),\"\")","v":""}]
[{"$nulls":6},{"$f":"IFERROR(IF(LEN(里程碑!D10)=0,\"\",IF(AND(里程碑!D10<=$B$12,里程碑!D10>=$B$11-$D$11),里程碑!E10,\"\")),\"\")","v":""},{"$f":"IFERROR(IF(LEN(动态里程碑日期[[#This Row],[里程碑]])=0,$B$12,里程碑!$D10),2)","v":"2024-04-26"},{"$f":"IFERROR(IF(LEN(动态里程碑日期[[#This Row],[里程碑]])=0,\"\",里程碑!$C10),\"\")","v":""}]
[{"$nulls":6},{"$f":"IFERROR(IF(LEN(里程碑!D11)=0,\"\",IF(AND(里程碑!D11<=$B$12,里程碑!D11>=$B$11-$D$11),里程碑!E11,\"\")),\"\")","v":""},{"$f":"IFERROR(IF(LEN(动态里程碑日期[[#This Row],[里程碑]])=0,$B$12,里程碑!$D11),2)","v":"2024-04-26"},{"$f":"IFERROR(IF(LEN(动态里程碑日期[[#This Row],[里程碑]])=0,\"\",里程碑!$C11),\"\")","v":""}]
[{"$nulls":6},{"$f":"IFERROR(IF(LEN(里程碑!D12)=0,\"\",IF(AND(里程碑!D12<=$B$12,里程碑!D12>=$B$11-$D$11),里程碑!E12,\"\")),\"\")","v":""},{"$f":"IFERROR(IF(LEN(动态里程碑日期[[#This Row],[里程碑]])=0,$B$12,里程碑!$D12),2)","v":"2024-04-26"},{"$f":"IFERROR(IF(LEN(动态里程碑日期[[#This Row],[里程碑]])=0,\"\",里程碑!$C12),\"\")","v":""}]
[{"$nulls":6},{"$f":"IFERROR(IF(LEN(里程碑!D13)=0,\"\",IF(AND(里程碑!D13<=$B$12,里程碑!D13>=$B$11-$D$11),里程碑!E13,\"\")),\"\")","v":""},{"$f":"IFERROR(IF(LEN(动态里程碑日期[[#This Row],[里程碑]])=0,$B$12,里程碑!$D13),2)","v":"2024-04-26"},{"$f":"IFERROR(IF(LEN(动态里程碑日期[[#This Row],[里程碑]])=0,\"\",里程碑!$C13),\"\")","v":""}]
[{"$nulls":6},{"$f":"IFERROR(IF(LEN(里程碑!D14)=0,\"\",IF(AND(里程碑!D14<=$B$12,里程碑!D14>=$B$11-$D$11),里程碑!E14,\"\")),\"\")","v":""},{"$f":"IFERROR(IF(LEN(动态里程碑日期[[#This Row],[里程碑]])=0,$B$12,里程碑!$D14),2)","v":"2024-04-26"},{"$f":"IFERROR(IF(LEN(动态里程碑日期[[#This Row],[里程碑]])=0,\"\",里程碑!$C14),\"\")","v":""}]
[{"$nulls":6},{"$f":"IFERROR(IF(LEN(里程碑!D15)=0,\"\",IF(AND(里程碑!D15<=$B$12,里程碑!D15>=$B$11-$D$11),里程碑!E15,\"\")),\"\")","v":""},{"$f":"IFERROR(IF(LEN(动态里程碑日期[[#This Row],[里程碑]])=0,$B$12,里程碑!$D15),2)","v":"2024-04-26"},{"$f":"IFERROR(IF(LEN(动态里程碑日期[[#This Row],[里程碑]])=0,\"\",里程碑!$C15),\"\")","v":""}]
[{"$nulls":6},{"$f":"IFERROR(IF(LEN(里程碑!D16)=0,\"\",IF(AND(里程碑!D16<=$B$12,里程碑!D16>=$B$11-$D$11),里程碑!E16,\"\")),\"\")","v":""},{"$f":"IFERROR(IF(LEN(动态里程碑日期[[#This Row],[里程碑]])=0,$B$12,里程碑!$D16),2)","v":"2024-04-26"},{"$f":"IFERROR(IF(LEN(动态里程碑日期[[#This Row],[里程碑]])=0,\"\",里程碑!$C16),\"\")","v":""}]
[{"$nulls":6},{"$f":"IFERROR(IF(LEN(里程碑!D17)=0,\"\",IF(AND(里程碑!D17<=$B$12,里程碑!D17>=$B$11-$D$11),里程碑!E17,\"\")),\"\")","v":""},{"$f":"IFERROR(IF(LEN(动态里程碑日期[[#This Row],[里程碑]])=0,$B$12,里程碑!$D17),2)","v":"2024-04-26"},{"$f":"IFERROR(IF(LEN(动态里程碑日期[[#This Row],[里程碑]])=0,\"\",里程碑!$C17),\"\")","v":""}]
[{"$nulls":6},{"$f":"IFERROR(IF(LEN(里程碑!D18)=0,\"\",IF(AND(里程碑!D18<=$B$12,里程碑!D18>=$B$11-$D$11),里程碑!E18,\"\")),\"\")","v":""},{"$f":"IFERROR(IF(LEN(动态里程碑日期[[#This Row],[里程碑]])=0,$B$12,里程碑!$D18),2)","v":"2024-04-26"},{"$f":"IFERROR(IF(LEN(动态里程碑日期[[#This Row],[里程碑]])=0,\"\",里程碑!$C18),\"\")","v":""}]
[{"$nulls":6},{"$f":"IFERROR(IF(LEN(里程碑!D19)=0,\"\",IF(AND(里程碑!D19<=$B$12,里程碑!D19>=$B$11-$D$11),里程碑!E19,\"\")),\"\")","v":""},{"$f":"IFERROR(IF(LEN(动态里程碑日期[[#This Row],[里程碑]])=0,$B$12,里程碑!$D19),2)","v":"2024-04-26"},{"$f":"IFERROR(IF(LEN(动态里程碑日期[[#This Row],[里程碑]])=0,\"\",里程碑!$C19),\"\")","v":""}]
["备注位于单元格 J32 中。\n这是此工作表中的最后一条指示。",{"$nulls":5},{"$f":"IFERROR(IF(LEN(里程碑!D20)=0,\"\",IF(AND(里程碑!D20<=$B$12,里程碑!D20>=$B$11-$D$11),里程碑!E20,\"\")),\"\")","v":""},{"$f":"IFERROR(IF(LEN(动态里程碑日期[[#This Row],[里程碑]])=0,$B$12,里程碑!$D20),2)","v":"2024-04-26"},{"$f":"IFERROR(IF(LEN(动态里程碑日期[[#This Row],[里程碑]])=0,\"\",里程碑!$C20),\"\")","v":""},"<-- 若要绘制超过 15 个里程碑，只需展开此表，并在“图表数据”工作表的“里程碑”表中输入新条目。\n"]